Workbook

Sheet REPORT
A2: Don't Delete Ref Formaula | F2: ROOM | G2: DATE RECEIVED | H2: DATE GASSED | I2: GASSING HOURS | J2: PO # | K2: LABEL | L2: COO | M2: PULP TEMP | N2: SET TEMP | O2: EST.SALE DATE | P2: ROOM STAGE | Q2: CORPORATE | R2: PCO | S2: RIPE PLT | T2: SDM | U2: OUTBOUND ORDER | Y2: Ref:Ripening Days Formula
B3: CORPORATE | C3: PCO | D3: RIPE PLT | E3: SDM | Q3: 20175355004 | R3: 20139509003 | S3: 20033488002 | T3: 20047209002 | U3: CORPORATE BANANAS | V3: PCO | W3: RIPE PLANTAIN | X3: SDM
Q4: Qty | R4: Qty | S4: Qty | T4: Qty
A5: =U5 -> 0 | B5: =IF(Q5>0,Q$2&U5,"") ->  | C5: =IF(R5>0,R$2&V5,"") ->  | D5: =IF(S5>0,S$2&W5,"") ->  | E5: =IF(T5>0,T$2&X5,"") ->  | F5: 1A | G5: =IF(ISBLANK('1'!$N$3),"",'1'!$N$3) ->  | H5: =IF(ISBLANK('1'!$N$4),"",'1'!$N$4) ->  | I5: ='1'!$G$13 -> 0 | J5: ='1'!$C$5 -> 0 | K5: ='1'!$E$5 -> 0 | L5: ='1'!$H$5 -> 0 | M5: ='1'!$C$13 -> 0 | N5: ='1'!$D$13 -> 0 | O5: ='1'!$N$7 -> 0 | P5: ='1'!$H$13 -> 0 | Q5: ='1'!$I$13 -> 0 | R5: ='1'!$J$13 -> 0 | S5: ='1'!$K$13 -> 0 | T5: ='1'!$L$13 -> 0 | Y5: =IF(AND($J5>0,U5<>"Northern"),TODAY()-G5,"0") -> 0 | Z5: =IF(AND($U5<>0,$U5<>"Northern"),"Add"," ") -> 
A6: =U6 -> 0 | B6: =IF(Q6>0,Q$2&U6,"") ->  | C6: =IF(R6>0,R$2&V6,"") ->  | D6: =IF(S6>0,S$2&W6,"") ->  | E6: =IF(T6>0,T$2&X6,"") ->  | F6: 1B | G6: =IF(ISBLANK('1'!$N$5),"",'1'!$N$5) -> 2022-05-28 | H6: =IF(ISBLANK('1'!$N$6),"",'1'!$N$6) ->  | I6: ='1'!$G$14 -> 0 | J6: ='1'!$C$7 -> 0 | K6: ='1'!$E$7 -> 0 | L6: ='1'!$H$7 -> 0 | M6: ='1'!$C$14 -> 58.9 | N6: ='1'!$D$14 -> 0 | O6: ='1'!$N$8 -> 0 | P6: ='1'!$H$14 -> 0 | Q6: ='1'!$I$14 -> 0 | R6: ='1'!$J$14 -> 0 | S6: ='1'!$K$14 -> 0 | T6: ='1'!$L$14 -> 0 | Y6: =IF(AND($J6>0,U6<>"Northern"),TODAY()-G6,"0") -> 0 | Z6: =IF(AND($U6<>0,$U6<>"Northern"),"Add"," ") -> 
A7: USE 1ST | B7: CORPORATEUSE 1ST | F7: 2A | G7: =IF(ISBLANK('2'!$N$3),"",'2'!$N$3) -> 2022-05-25 | H7: =IF(ISBLANK('2'!$N$4),"",'2'!$N$4) -> 2022-05-25 | I7: ='2'!$G$13 -> 72 | J7: ='2'!$C$5 -> 2004504425 | K7: ='2'!$E$5 -> DELMONTE | L7: ='2'!$H$5 -> GUATEMALA | M7: ='2'!$C$13 -> 58.9 | N7: ='2'!$D$13 -> 58 | O7: ='2'!$N$7 -> SUN | P7: ='2'!$H$13 -> 3 | Q7: ='2'!$I$13 -> 672 | R7: ='2'!$J$13 -> 0 | S7: ='2'!$K$13 -> 0 | T7: ='2'!$L$13 -> 0 | U7: USE 1ST | Y7: =IF(AND($J7>0,U7<>"Northern"),TODAY()-G7,"") -> 4 | Z7: Add
A8: , | B8: CORPORATEUSE 2ND | C8: PCOUSE 1ST | D8: RIPE PLTUSE 1ST | E8: SDM | F8: 2B | G8: =IF(ISBLANK('2'!$N$5),"",'2'!$N$5) -> 2022-05-25 | H8: =IF(ISBLANK('2'!$N$6),"",'2'!$N$6) -> 2022-05-25 | I8: ='2'!$G$14 -> 72 | J8: ='2'!$C$7 -> 2004504432 | K8: ='2'!$E$7 -> DELMONTE | L8: ='2'!$H$7 -> GUATEMALA | M8: ='2'!$C$14 -> 61.3 | N8: ='2'!$D$14 -> 60 | O8: ='2'!$N$8 -> SUN | P8: ='2'!$H$14 -> 2.5 | Q8: ='2'!$I$14 -> 528 | R8: ='2'!$J$14 -> 144 | S8: ='2'!$K$14 -> 96 | T8: ='2'!$L$14 -> 45 | U8: USE 2ND | V8: USE 1ST | W8: USE 1ST | Y8: 4 | Z8: Add
A9: 0 | F9: 3A | G9: =IF(ISBLANK('3'!$N$3),"",'3'!$N$3) -> 2022-05-25 | H9: =IF(ISBLANK('3'!$N$4),"",'3'!$N$4) -> 2022-05-25 | I9: ='3'!$G$13 -> 0 | J9: ='3'!$C$5 -> 0 | K9: ='3'!$E$5 -> 0 | L9: ='3'!$H$5 -> 0 | M9: ='3'!$C$13 -> 0 | N9: ='3'!$D$13 -> 0 | O9: ='3'!$N$7 -> SUN | P9: ='3'!$H$13 -> 0 | Q9: ='3'!$I$13 -> 0 | R9: ='3'!$J$13 -> 0 | S9: ='3'!$K$13 -> 0 | T9: ='3'!$L$13 -> 0
A10: 0 | F10: 3B | G10: =IF(ISBLANK('3'!$N$5),"",'3'!$N$5) -> 2022-05-26 | H10: =IF(ISBLANK('3'!$N$6),"",'3'!$N$6) -> 2022-05-25 | I10: ='3'!$G$14 -> 0 | J10: ='3'!$C$7 -> 0 | K10: ='3'!$E$7 -> 0 | L10: ='3'!$H$7 -> 0 | M10: ='3'!$C$14 -> 0 | N10: ='3'!$D$14 -> 0 | O10: ='3'!$N$8 -> SUN | P10: ='3'!$H$14 -> 0 | Q10: ='3'!$I$14 -> 0 | R10: ='3'!$J$14 -> 0 | S10: ='3'!$K$14 -> 0 | T10: ='3'!$L$14 -> 0
A11: USE 4TH | B11: CORPORATEUSE 4TH | C11: PCOUSE 2ND | D11: RIPE PLT | F11: 4A | G11: =IF(ISBLANK('4'!$N$3),"",'4'!$N$3) -> 2022-05-26 | H11: =IF(ISBLANK('4'!$N$5),"",'4'!$N$5) -> 2022-05-27 | I11: ='4'!$G$13 -> 48 | J11: ='4'!$C$5 -> 2004504433 | K11: ='4'!$E$5 -> DELMONTE | L11: ='4'!$H$5 -> GUATEMALA | M11: ='4'!$C$13 -> 62.7 | N11: ='4'!$D$13 -> 62 | O11: ='4'!$N$7 -> MON | P11: ='4'!$H$13 -> 2 | Q11: ='4'!$I$13 -> 624 | R11: ='4'!$J$13 -> 192 | S11: ='4'!$K$13 -> 48 | T11: ='4'!$L$13 -> 0 | U11: USE 4TH | V11: USE 2ND | Y11: 3 | Z11: Add
B12: CORPORATE | F12: 4B | G12: =IF(ISBLANK('4'!$N$4),"",'4'!$N$4) -> 2022-05-27 | H12: =IF(ISBLANK('4'!$N$5),"",'4'!$N$5) -> 2022-05-27 | I12: ='4'!$G$14 -> 24 | J12: ='4'!$C$7 -> 2004504938 | K12: ='4'!$E$7 -> DELMONTE | L12: ='4'!$H$7 -> GUATEMALA | M12: ='4'!$C$14 -> 62.2 | N12: ='4'!$D$14 -> 62 | O12: ='4'!$N$8 -> TUE | P12: ='4'!$H$14 -> 1 | Q12: ='4'!$I$14 -> 960 | R12: ='4'!$J$14 -> 0 | S12: ='4'!$K$14 -> 0 | T12: ='4'!$L$14 -> 0 | Y12: 2
A13: NORTHERN | B13: CORPORATENORTHERN | F13: 5 | G13: =IF(ISBLANK('5'!$N$4),"",'5'!$N$4) -> 2022-05-26 | H13: =IF(ISBLANK('5'!$N$5),"",'5'!$N$5) -> 2022-05-26 | I13: ='5'!$G$12 -> 48 | J13: ='5'!$C$5 -> 2004504426 | K13: ='5'!$E$5 -> DELMONTE | L13: ='5'!$H$5 -> GUATEMALA | M13: ='5'!$C$12 -> 61.2 | N13: ='5'!$D$12 -> 61 | O13: ='5'!$N$6 -> MON | P13: ='5'!$H$12 -> 2 | Q13: ='5'!$I$12 -> 960 | R13: ='5'!$J$12 -> 0 | S13: ='5'!$K$12 -> 0 | T13: ='5'!$L$12 -> 0 | U13: NORTHERN
A14: =U14 -> 0 | B14: =IF(Q14>0,Q$2&U14,"") ->  | C14: =IF(R14>0,R$2&V14,"") ->  | D14: =IF(S14>0,S$2&W14,"") ->  | E14: =IF(T14>0,T$2&X14,"") ->  | F14: 6 | G14: =IF(ISBLANK('6'!$N$4),"",'6'!$N$4) ->  | H14: =IF(ISBLANK('6'!$N$5),"",'6'!$N$5) ->  | I14: ='6'!$G$12 -> 0 | J14: ='6'!$C$5 -> 0 | K14: ='6'!$E$5 -> 0 | L14: ='6'!$H$5 -> 0 | M14: ='6'!$C$12 -> 0 | N14: ='6'!$D$12 -> 0 | O14: ='6'!$N$6 -> 0 | P14: ='6'!$H$12 -> 0 | Q14: ='6'!$I$12 -> 0 | R14: ='6'!$J$12 -> 0 | S14: ='6'!$K$12 -> 0 | T14: ='6'!$L$12 -> 0 | Y14: =IF(AND($J14>0,U14<>"Northern"),TODAY()-G14,"0") -> 0
A15: USE 3RD | B15: CORPORATEUSE 3RD | F15: 7 | G15: =IF(ISBLANK('7'!$N$4),"",'7'!$N$4) -> 2022-05-27 | H15: =IF(ISBLANK('7'!$N$5),"",'7'!$N$5) -> 2022-05-27 | I15: ='7'!$G$12 -> 24 | J15: ='7'!$C$5 -> 2004505631 | K15: ='7'!$E$5 -> CHIQUITA | L15: ='7'!$H$5 -> GUATEMALA | M15: ='7'!$C$12 -> 59.9 | N15: ='7'!$D$12 -> 60 | O15: ='7'!$N$6 -> MON | P15: ='7'!$H$12 -> 2.5 | Q15: ='7'!$I$12 -> 816 | R15: ='7'!$J$12 -> 0 | S15: ='7'!$K$12 -> 0 | T15: ='7'!$L$12 -> 0 | U15: USE 3RD | Y15: 2 | Z15: Add
A16: 0 | F16: 8 | G16: =IF(ISBLANK('8'!$N$4),"",'8'!$N$4) ->  | H16: =IF(ISBLANK('8'!$N$5),"",'8'!$N$5) ->  | I16: ='8'!$G$12 -> 0 | J16: ='8'!$C$5 -> 0 | K16: ='8'!$E$5 -> 0 | L16: ='8'!$H$5 -> 0 | M16: ='8'!$C$12 -> 0 | N16: ='8'!$D$12 -> 0 | O16: ='8'!$N$6 -> 0 | P16: ='8'!$H$12 -> 0 | Q16: ='8'!$I$12 -> 0 | R16: ='8'!$J$12 -> 0 | S16: ='8'!$K$12 -> 0 | T16: ='8'!$L$12 -> 0
A17: =U17 -> OUT OF SERVICE | F17: 9 | G17: =IF(ISBLANK('9'!$N$4),"",'9'!$N$4) ->  | H17: =IF(ISBLANK('9'!$N$5),"",'9'!$N$5) ->  | I17: ='9'!$G$12 -> 0 | J17: ='9'!$C$5 -> 0 | K17: ='9'!$E$5 -> 0 | L17: ='9'!$H$5 -> 0 | M17: ='9'!$C$12 -> 0 | N17: ='9'!$D$12 -> 0 | O17: ='9'!$N$6 -> 0 | P17: ='9'!$H$12 -> 0 | Q17: ='9'!$I$12 -> 0 | R17: ='9'!$J$12 -> 0 | S17: ='9'!$K$12 -> 0 | T17: ='9'!$L$12 -> 0 | U17: OUT OF SERVICE | Z17: Add
B18: CORPORATE | C18: PCO | E18: SDM | F18: 10 | G18: =IF(ISBLANK('10'!$N$4),"",'10'!$N$4) -> 2022-05-27 | H18: =IF(ISBLANK('10'!$N$5),"",'10'!$N$5) -> 2022-05-27 | I18: ='10'!$G$12 -> 24 | J18: ='10'!$C$5 -> 2004504945 | K18: ='10'!$E$5 -> DELMONTE | L18: ='10'!$H$5 -> GUATEMALA | M18: ='10'!$C$12 -> 62.6 | N18: ='10'!$D$12 -> 62 | O18: ='10'!$N$6 -> TUE | P18: ='10'!$H$12 -> 1 | Q18: ='10'!$I$12 -> 720 | R18: ='10'!J12 -> 144 | S18: ='10'!K12 -> 0 | T18: ='10'!L12 -> 45 | Y18: 2
A19: 0 | F19: PRE1 | G19: ='PRE RIPE'!$B$7 -> 00:00:00 | J19: ='PRE RIPE'!$C$7 -> 0 | K19: ='PRE RIPE'!$D$7 -> 0 | L19: ='PRE RIPE'!E7 -> 0 | M19: ='PRE RIPE'!F7 -> 0 | P19: ='PRE RIPE'!G7 -> 0 | Q19: ='PRE RIPE'!H7 -> 0 | R19: ='PRE RIPE'!I7 -> 0 | S19: ='PRE RIPE'!J7 -> 0 | T19: ='PRE RIPE'!K7 -> 0 | Y19: =IF(AND($J19>0,U19<>"Northern"),TODAY()-G19,"0") -> 0
A20: 0 | F20: PRE2 | G20: ='PRE RIPE'!$B$8 -> 00:00:00 | J20: ='PRE RIPE'!$C$8 -> 0 | K20: ='PRE RIPE'!$D$8 -> 0 | L20: ='PRE RIPE'!E8 -> 0 | M20: ='PRE RIPE'!F8 -> 0 | P20: ='PRE RIPE'!G8 -> 0 | Q20: ='PRE RIPE'!H8 -> 0 | R20: ='PRE RIPE'!I8 -> 0 | S20: ='PRE RIPE'!J8 -> 0 | T20: ='PRE RIPE'!K8 -> 0 | Y20: =IF(AND($J20>0,U20<>"Northern"),TODAY()-G20,"0") -> 0
G21: 5 | I21: 81 | J21: PRODUCT NOT IN BANANA ROOMS -LEFTOVER | O21: =TEXT(TODAY(),"DDD") -> Sun | P21: =Summary!$C$47 -> 3 | Q21: =Summary!D47 -> 1620 | R21: =Summary!F47 -> 283 | S21: =Summary!H47 -> 81 | T21: =Summary!J47 -> 0 | Y21: =IF(Z21=" ", G21,Z21) -> 4.25 | Z21: =IFERROR(AVERAGEIF(Z5:Z20,"Add",Y5:Y20)+1," ") -> 4.25
Q22: =SUM(Q5:Q21) -> 6900 | R22: =SUM(R5:R21) -> 763 | S22: =SUM(S5:S21) -> 225 | T22: =SUM(T5:T21) -> 90

Sheet Summary
A1: FOR QA PLANNING | H1: SC: Today's Banana Availability
A3: DAY | B3: CORPORATE | C3: PCO | D3: RIPE PLT | E3: SDM | H3: BANANA TYPE | J3: # C/S | L3: Ripening Days | N3: Color Stage
A4: MON | B4: =IF(SUMIF(REPORT!$O$5:$O$21,$A$4, (REPORT!Q$5:Q$21))>0,SUMIF(REPORT!$O$5:$O$21,$A$4, (REPORT!Q$5:Q$21)),"") -> 2400 | C4: =IF(SUMIF(REPORT!$O$5:$O$21,$A$4, (REPORT!R$5:R$21))>0,SUMIF(REPORT!$O$5:$O$21,$A$4, (REPORT!R$5:R$21)),"") -> 192 | D4: =IF(SUMIF(REPORT!$O$5:$O$21,$A$4, (REPORT!S$5:S$21))>0,SUMIF(REPORT!$O$5:$O$21,$A$4, (REPORT!S$5:S$21)),"") -> 48 | E4: =IF(SUMIF(REPORT!$O$5:$O$21,$A$4, (REPORT!T$5:T$21))>0,SUMIF(REPORT!$O$5:$O$21,$A$4, (REPORT!T$5:T$21)),"") -> 
A5: TUE | B5: =IF(SUMIF(REPORT!$O$5:$O$21,$A$5, (REPORT!Q$5:Q$21))>0,SUMIF(REPORT!$O$5:$O$21,$A$5, (REPORT!Q$5:Q$21)),"") -> 1680 | C5: =IF(SUMIF(REPORT!$O$5:$O$21,$A$5, (REPORT!R$5:R$21))>0,SUMIF(REPORT!$O$5:$O$21,$A$5, (REPORT!R$5:R$21)),"") -> 144 | D5: =IF(SUMIF(REPORT!$O$5:$O$21,$A$5, (REPORT!S$5:S$21))>0,SUMIF(REPORT!$O$5:$O$21,$A$5, (REPORT!S$5:S$21)),"") ->  | E5: =IF(SUMIF(REPORT!$O$5:$O$21,$A$5, (REPORT!T$5:T$21))>0,SUMIF(REPORT!$O$5:$O$21,$A$5, (REPORT!T$5:T$21)),"") -> 45 | H5: CORPORATE | J5: =IF(SUMIF(REPORT!$P$5:$P$20,Summary!N5,REPORT!Q$5:Q$20)>0,SUMIF(REPORT!$P$5:$P$20,Summary!N5,REPORT!Q$5:Q$20),"") -> 672 | L5: =(IF(OR(ISBLANK(N5),ISERROR(AVERAGEIF(REPORT!P$5:P$20,Summary!N5,REPORT!Y$5:Y$20))),"",AVERAGEIF(REPORT!P$5:P$20,Summary!N5,REPORT!Y$5:Y$20))) -> 4 | N5: 3
A6: WED | B6: =IF(SUMIF(REPORT!$O$5:$O$21,$A$6, (REPORT!Q$5:Q$21))>0,SUMIF(REPORT!$O$5:$O$21,$A$6, (REPORT!Q$5:Q$21)),"") ->  | C6: =IF(SUMIF(REPORT!$O$5:$O$21,$A$6, (REPORT!R$5:R$21))>0,SUMIF(REPORT!$O$5:$O$21,$A$6, (REPORT!R$5:R$21)),"") ->  | D6: =IF(SUMIF(REPORT!$O$5:$O$21,$A$6, (REPORT!S$5:S$21))>0,SUMIF(REPORT!$O$5:$O$21,$A$6, (REPORT!S$5:S$21)),"") ->  | E6: =IF(SUMIF(REPORT!$O$5:$O$21,$A$6, (REPORT!T$5:T$21))>0,SUMIF(REPORT!$O$5:$O$21,$A$6, (REPORT!T$5:T$21)),"") ->  | H6: CORPORATE | J6: =IF(SUMIF(REPORT!$P$5:$P$20,Summary!N6,REPORT!Q$5:Q$20)>0,SUMIF(REPORT!$P$5:$P$20,Summary!N6,REPORT!Q$5:Q$20),"") -> 1344 | L6: =IF(OR(ISBLANK(N6),ISERROR(AVERAGEIF(REPORT!P$5:P$20,Summary!N6,REPORT!Y$5:Y$20))),"",AVERAGEIF(REPORT!P$5:P$20,Summary!N6,REPORT!Y$5:Y$20)) -> 3 | N6: 2.5
A7: THU | B7: =IF(SUMIF(REPORT!$O$5:$O$21,$A$7, (REPORT!Q$5:Q$21))>0,SUMIF(REPORT!$O$5:$O$21,$A$7, (REPORT!Q$5:Q$21)),"") ->  | C7: =IF(SUMIF(REPORT!$O$5:$O$21,$A$7, (REPORT!R$5:R$21))>0,SUMIF(REPORT!$O$5:$O$21,$A$7, (REPORT!R$5:R$21)),"") ->  | D7: =IF(SUMIF(REPORT!$O$5:$O$21,$A$7, (REPORT!S$5:S$21))>0,SUMIF(REPORT!$O$5:$O$21,$A$7, (REPORT!S$5:S$21)),"") ->  | E7: =IF(SUMIF(REPORT!$O$5:$O$21,$A$7, (REPORT!T$5:T$21))>0,SUMIF(REPORT!$O$5:$O$21,$A$7, (REPORT!T$5:T$21)),"") ->  | H7: CORPORATE | J7: =IF(SUMIF(REPORT!$P$5:$P$20,Summary!N7,REPORT!Q$5:Q$20)>0,SUMIF(REPORT!$P$5:$P$20,Summary!N7,REPORT!Q$5:Q$20),"") ->  | L7: =IF(OR(ISBLANK(N7),ISERROR(AVERAGEIF(REPORT!P$5:P$20,Summary!N7,REPORT!Y$5:Y$20))),"",AVERAGEIF(REPORT!P$5:P$20,Summary!N7,REPORT!Y$5:Y$20)) -> 
H8: CORPORATE (Staging LN) | J8: =$D$47 -> 1620 | L8: =REPORT!$Y$21 -> 4.25 | N8: =$C$47 -> 3
A9: FRI | B9: =IF(SUMIF(REPORT!$O$5:$O$21,$A$9, (REPORT!Q$5:Q$21))>0,SUMIF(REPORT!$O$5:$O$21,$A$9, (REPORT!Q$5:Q$21)),"") ->  | C9: =IF(SUMIF(REPORT!$O$5:$O$21,$A$9, (REPORT!R$5:R$21))>0,SUMIF(REPORT!$O$5:$O$21,$A$9, (REPORT!R$5:R$21)),"") ->  | D9: =IF(SUMIF(REPORT!$O$5:$O$21,$A$9, (REPORT!S$5:S$21))>0,SUMIF(REPORT!$O$5:$O$21,$A$9, (REPORT!S$5:S$21)),"") ->  | E9: =IF(SUMIF(REPORT!$O$5:$O$21,$A$9, (REPORT!T$5:T$21))>0,SUMIF(REPORT!$O$5:$O$21,$A$9, (REPORT!T$5:T$21)),"") ->  | H9: PCO | J9: =IF(SUMIF(REPORT!$P$5:$P$20,Summary!N9,REPORT!R$5:R$20)>0,SUMIF(REPORT!$P$5:$P$20,Summary!N9,REPORT!R$5:R$20),"") ->  | L9: =IF(OR(ISBLANK(N9),ISERROR(AVERAGEIF(REPORT!P$5:P$20,Summary!N9,REPORT!Y$5:Y$20))),"",AVERAGEIF(REPORT!P$5:P$20,Summary!N9,REPORT!Y$5:Y$20)) -> 4 | N9: 3
A10: SAT | B10: =IF(SUMIF(REPORT!$O$5:$O$21,$A$10, (REPORT!Q$5:Q$21))>0,SUMIF(REPORT!$O$5:$O$21,$A$10, (REPORT!Q$5:Q$21)),"") ->  | C10: =IF(SUMIF(REPORT!$O$5:$O$21,$A$10, (REPORT!R$5:R$21))>0,SUMIF(REPORT!$O$5:$O$21,$A$10, (REPORT!R$5:R$21)),"") ->  | D10: =IF(SUMIF(REPORT!$O$5:$O$21,$A$10, (REPORT!S$5:S$21))>0,SUMIF(REPORT!$O$5:$O$21,$A$10, (REPORT!S$5:S$21)),"") ->  | E10: =IF(SUMIF(REPORT!$O$5:$O$21,$A$10, (REPORT!T$5:T$21))>0,SUMIF(REPORT!$O$5:$O$21,$A$10, (REPORT!T$5:T$21)),"") ->  | H10: PCO | J10: =IF(SUMIF(REPORT!$P$5:$P$20,Summary!N10,REPORT!R$5:R$20)>0,SUMIF(REPORT!$P$5:$P$20,Summary!N10,REPORT!R$5:R$20),"") -> 144 | L10: =IF(OR(ISBLANK(N10),ISERROR(AVERAGEIF(REPORT!P$5:P$21,Summary!N10,REPORT!Y$5:Y$21))),"",AVERAGEIF(REPORT!P$5:P$21,Summary!N10,REPORT!Y$5:Y$21)) -> 3 | N10: 2.5
A11: SUN | B11: =IF(SUMIF(REPORT!$O$5:$O$21,$A$11, (REPORT!Q$5:Q$21))>0,SUMIF(REPORT!$O$5:$O$21,$A$11, (REPORT!Q$5:Q$21)),"") -> 2820 | C11: =IF(SUMIF(REPORT!$O$5:$O$21,$A$11, (REPORT!R$5:R$21))>0,SUMIF(REPORT!$O$5:$O$21,$A$11, (REPORT!R$5:R$21)),"") -> 427 | D11: =IF(SUMIF(REPORT!$O$5:$O$21,$A$11, (REPORT!S$5:S$21))>0,SUMIF(REPORT!$O$5:$O$21,$A$11, (REPORT!S$5:S$21)),"") -> 177 | E11: =IF(SUMIF(REPORT!$O$5:$O$21,$A$11, (REPORT!T$5:T$21))>0,SUMIF(REPORT!$O$5:$O$21,$A$11, (REPORT!T$5:T$21)),"") -> 45 | H11: PCO | J11: =IF(SUMIF(REPORT!$P$5:$P$20,Summary!N11,REPORT!R$5:R$20)>0,SUMIF(REPORT!$P$5:$P$20,Summary!N11,REPORT!R$5:R$20),"") ->  | L11: =IF(OR(ISBLANK(N11),ISERROR(AVERAGEIF(REPORT!P$5:P$21,Summary!N11,REPORT!Y$5:Y$21))),"",AVERAGEIF(REPORT!P$5:P$21,Summary!N11,REPORT!Y$5:Y$21)) -> 
H12: PCO (Staging LN) | J12: =$F$47 -> 283 | L12: =REPORT!$Y$21 -> 4.25 | N12: =$E$47 -> 3
A13: Total | B13: =SUM(B4:B11) -> 6900 | C13: 763 | D13: 225 | E13: 90 | H13: RIPE PLANTAIN | J13: =IF(SUMIF(REPORT!$P$5:$P$20,Summary!N13,REPORT!S$5:S$20)>0,SUMIF(REPORT!$P$5:$P$20,Summary!N13,REPORT!S$5:S$20),"") -> 96 | L13: =IF(OR(ISBLANK(N13),ISERROR(AVERAGEIF(REPORT!P$5:P$21,Summary!N13,REPORT!Y$5:Y$21))),"",AVERAGEIF(REPORT!P$5:P$21,Summary!N13,REPORT!Y$5:Y$21)) -> 3 | N13: 2.5
H14: RIPE PLANTAIN | J14: =IF(SUMIF(REPORT!$P$5:$P$20,Summary!N14,REPORT!S$5:S$20)>0,SUMIF(REPORT!$P$5:$P$20,Summary!N14,REPORT!S$5:S$20),"") ->  | L14: =IF(OR(ISBLANK(N14),ISERROR(AVERAGEIF(REPORT!P$5:P$21,Summary!N14,REPORT!Y$5:Y$21))),"",AVERAGEIF(REPORT!P$5:P$21,Summary!N14,REPORT!Y$5:Y$21)) -> 
H15: RIPE PL (Staging LN) | J15: =$H$47 -> 81 | L15: =$G$47 -> 3 | N15: =$G$47 -> 3
A16: Banana Daily report Summary | H16: SDM | J16: =IF(SUMIF(REPORT!$P$5:$P$20,Summary!N16,REPORT!T$5:T$20)>0,SUMIF(REPORT!$P$5:$P$20,Summary!N16,REPORT!T$5:T$20),"") -> 45 | L16: =IF(OR(ISBLANK(N16),ISERROR(AVERAGEIF(REPORT!P$5:P$21,Summary!N16,REPORT!Y$5:Y$21))),"",AVERAGEIF(REPORT!P$5:P$21,Summary!N16,REPORT!Y$5:Y$21)) -> 3 | N16: 2.5
A17: =TODAY() -> 2022-05-29 | H17: SDM | J17: =IF(SUMIF(REPORT!$P$5:$P$20,Summary!N17,REPORT!T$5:T$20)>0,SUMIF(REPORT!$P$5:$P$20,Summary!N17,REPORT!T$5:T$20),"") ->  | L17: =IF(OR(ISBLANK(N17),ISERROR(AVERAGEIF(REPORT!P$5:P$21,Summary!N17,REPORT!Y$5:Y$21))),"",AVERAGEIF(REPORT!P$5:P$21,Summary!N17,REPORT!Y$5:Y$21)) -> 
A18: HR. | B18: CORPORATE | C18: PCO | D18: RIPE PLT | E18: SDM | H18: SDM (Staging LN) | J18: =$J$47 -> 0 | L18: =IF(OR(ISBLANK(N18),ISERROR(AVERAGEIF(REPORT!P$5:P$21,Summary!N18,REPORT!Y$5:Y$21))),"",AVERAGEIF(REPORT!P$5:P$21,Summary!N18,REPORT!Y$5:Y$21)) ->  | N18: =$I$47 -> 0
A19: 0-59 | B19: =IF(SUMIFS(REPORT!Q$5:Q$21, REPORT!$I$5:$I$21,">=0",REPORT!$I$5:$I$21,"<=59")>0,SUMIFS(REPORT!Q$5:Q$21, REPORT!$I$5:$I$21,">=0",REPORT!$I$5:$I$21,"<=59"),"") -> 4080 | C19: =IF(SUMIFS(REPORT!R$5:R$21, REPORT!$I$5:$I$21,">=0",REPORT!$I$5:$I$21,"<=59")>0,SUMIFS(REPORT!R$5:R$21, REPORT!$I$5:$I$21,">=0",REPORT!$I$5:$I$21,"<=59"),"") -> 336 | D19: =IF(SUMIFS(REPORT!S$5:S$21, REPORT!$I$5:$I$21,">=0",REPORT!$I$5:$I$21,"<=59")>0,SUMIFS(REPORT!S$5:S$21, REPORT!$I$5:$I$21,">=0",REPORT!$I$5:$I$21,"<=59"),"") -> 48 | E19: =IF(SUMIFS(REPORT!T$5:T$21, REPORT!$I$5:$I$21,">=0",REPORT!$I$5:$I$21,"<=59")>0,SUMIFS(REPORT!T$5:T$21, REPORT!$I$5:$I$21,">=0",REPORT!$I$5:$I$21,"<=59"),"") -> 45
A20: 60-79 | B20: =IF(SUMIFS(REPORT!Q$5:Q$21, REPORT!$I$5:$I$21,">=60",REPORT!$I$5:$I$21,"<=79")>0,SUMIFS(REPORT!Q$5:Q$21, REPORT!$I$5:$I$21,">=60",REPORT!$I$5:$I$21,"<=79"),"") -> 1200 | C20: =IF(SUMIFS(REPORT!R$5:R$21, REPORT!$I$5:$I$21,">=60",REPORT!$I$5:$I$21,"<=79")>0,SUMIFS(REPORT!R$5:R$21, REPORT!$I$5:$I$21,">=60",REPORT!$I$5:$I$21,"<=79"),"") -> 144 | D20: =IF(SUMIFS(REPORT!S$5:S$21, REPORT!$I$5:$I$21,">=60",REPORT!$I$5:$I$21,"<=79")>0,SUMIFS(REPORT!S$5:S$21, REPORT!$I$5:$I$21,">=60",REPORT!$I$5:$I$21,"<=79"),"") -> 96 | E20: =IF(SUMIFS(REPORT!T$5:T$21, REPORT!$I$5:$I$21,">=60",REPORT!$I$5:$I$21,"<=79")>0,SUMIFS(REPORT!T$5:T$21, REPORT!$I$5:$I$21,">=60",REPORT!$I$5:$I$21,"<=79"),"") -> 45
A21: 81-100 | B21: =IF(SUMIFS(REPORT!Q$5:Q$21, REPORT!$I$5:$I$21,">=81",REPORT!$I$5:$I$21,"<=100")>0,SUMIFS(REPORT!Q$5:Q$21, REPORT!$I$5:$I$21,">=81",REPORT!$I$5:$I$21,"<=100"),"") -> 1620 | C21: =IF(SUMIFS(REPORT!R$5:R$21, REPORT!$I$5:$I$21,">=81",REPORT!$I$5:$I$21,"<=100")>0,SUMIFS(REPORT!R$5:R$21, REPORT!$I$5:$I$21,">=81",REPORT!$I$5:$I$21,"<=100"),"") -> 283 | D21: =IF(SUMIFS(REPORT!S$5:S$21, REPORT!$I$5:$I$21,">=81",REPORT!$I$5:$I$21,"<=100")>0,SUMIFS(REPORT!S$5:S$21, REPORT!$I$5:$I$21,">=81",REPORT!$I$5:$I$21,"<=100"),"") -> 81 | E21: =IF(SUMIFS(REPORT!T$5:T$21, REPORT!$I$5:$I$21,">=81",REPORT!$I$5:$I$21,"<=100")>0,SUMIFS(REPORT!T$5:T$21, REPORT!$I$5:$I$21,">=81",REPORT!$I$5:$I$21,"<=100"),"") ->  | H21: Sales Forecasting
A22: 101-130+ | B22: =IF(SUMIFS(REPORT!Q$5:Q$21, REPORT!$I$5:$I$21,">=101")>0,SUMIFS(REPORT!Q$5:Q$21, REPORT!$I$5:$I$21,">=101"),"") ->  | C22: =IF(SUMIFS(REPORT!R$5:R$21, REPORT!$I$5:$I$21,">=101")>0,SUMIFS(REPORT!R$5:R$21, REPORT!$I$5:$I$21,">=101"),"") ->  | D22: =IF(SUMIFS(REPORT!S$5:S$21, REPORT!$I$5:$I$21,">=101")>0,SUMIFS(REPORT!S$5:S$21, REPORT!$I$5:$I$21,">=101"),"") ->  | E22: =IF(SUMIFS(REPORT!T$5:T$21, REPORT!$I$5:$I$21,">=101")>0,SUMIFS(REPORT!T$5:T$21, REPORT!$I$5:$I$21,">=101"),"") -> 
A23: Total | B23: =SUM(B19:B22) -> 6900 | C23: =SUM(C19:C22) -> 763 | D23: =SUM(D19:D22) -> 225 | E23: =SUM(E19:E22) -> 90 | H23: SALES | J23: INV | L23: SALES | N23: VARIANCE
H24: CORPORATE | I24: =#REF! ->  | J24: =D49 -> 4260 | N24: =J24-L24 -> 4260
H25: PCO | I25: =#REF! ->  | J25: =F49 -> 619 | N25: =J25-L25 -> 619
A26: DAY | B26: CORPORATE | C26: PCO | D26: RIPE PLT | E26: SDM | H26: RIPE PLT | J26: =H49 -> 177 | N26: 177
A27: 1 | B27: =IF((SUMIFS(REPORT!Q$5:Q$21, REPORT!$P$5:$P$21,$A27)>0),SUMIFS(REPORT!Q$5:Q$21, REPORT!$P$5:$P$21,$A27),"") -> 1680 | C27: =IF((SUMIFS(REPORT!R$5:R$21, REPORT!$P$5:$P$21,$A27)>0),SUMIFS(REPORT!R$5:R$21, REPORT!$P$5:$P$21,$A27),"") -> 144 | D27: =IF((SUMIFS(REPORT!S$5:S$21, REPORT!$P$5:$P$21,$A27)>0),SUMIFS(REPORT!S$5:S$21, REPORT!$P$5:$P$21,$A27),"") ->  | E27: =IF((SUMIFS(REPORT!T$5:T$21, REPORT!$P$5:$P$21,$A27)>0),SUMIFS(REPORT!T$5:T$21, REPORT!$P$5:$P$21,$A27),"") -> 45 | H27: SDM | J27: =J49 -> 0 | N27: 0
A28: 1.5 | B28: =IF((SUMIFS(REPORT!Q$5:Q$21, REPORT!$P$5:$P$21,$A28)>0),SUMIFS(REPORT!Q$5:Q$21, REPORT!$P$5:$P$21,$A28),"") ->  | C28: =IF((SUMIFS(REPORT!R$5:R$21, REPORT!$P$5:$P$21,$A28)>0),SUMIFS(REPORT!R$5:R$21, REPORT!$P$5:$P$21,$A28),"") ->  | D28: =IF((SUMIFS(REPORT!S$5:S$21, REPORT!$P$5:$P$21,$A28)>0),SUMIFS(REPORT!S$5:S$21, REPORT!$P$5:$P$21,$A28),"") ->  | E28: =IF((SUMIFS(REPORT!T$5:T$21, REPORT!$P$5:$P$21,$A28)>0),SUMIFS(REPORT!T$5:T$21, REPORT!$P$5:$P$21,$A28),"") -> 
A29: 2 | B29: =IF((SUMIFS(REPORT!Q$5:Q$21, REPORT!$P$5:$P$21,$A29)>0),SUMIFS(REPORT!Q$5:Q$21, REPORT!$P$5:$P$21,$A29),"") -> 1584 | C29: =IF((SUMIFS(REPORT!R$5:R$21, REPORT!$P$5:$P$21,$A29)>0),SUMIFS(REPORT!R$5:R$21, REPORT!$P$5:$P$21,$A29),"") -> 192 | D29: =IF((SUMIFS(REPORT!S$5:S$21, REPORT!$P$5:$P$21,$A29)>0),SUMIFS(REPORT!S$5:S$21, REPORT!$P$5:$P$21,$A29),"") -> 48 | E29: =IF((SUMIFS(REPORT!T$5:T$21, REPORT!$P$5:$P$21,$A29)>0),SUMIFS(REPORT!T$5:T$21, REPORT!$P$5:$P$21,$A29),"") -> 
A30: 2.5 | B30: =IF((SUMIFS(REPORT!Q$5:Q$21, REPORT!$P$5:$P$21,$A30)>0),SUMIFS(REPORT!Q$5:Q$21, REPORT!$P$5:$P$21,$A30),"") -> 1344 | C30: =IF((SUMIFS(REPORT!R$5:R$21, REPORT!$P$5:$P$21,$A30)>0),SUMIFS(REPORT!R$5:R$21, REPORT!$P$5:$P$21,$A30),"") -> 144 | D30: =IF((SUMIFS(REPORT!S$5:S$21, REPORT!$P$5:$P$21,$A30)>0),SUMIFS(REPORT!S$5:S$21, REPORT!$P$5:$P$21,$A30),"") -> 96 | E30: =IF((SUMIFS(REPORT!T$5:T$21, REPORT!$P$5:$P$21,$A30)>0),SUMIFS(REPORT!T$5:T$21, REPORT!$P$5:$P$21,$A30),"") -> 45
A31: 3 | B31: =IF((SUMIFS(REPORT!Q$5:Q$21, REPORT!$P$5:$P$21,$A31)>0),SUMIFS(REPORT!Q$5:Q$21, REPORT!$P$5:$P$21,$A31),"") -> 2292 | C31: =IF((SUMIFS(REPORT!R$5:R$21, REPORT!$P$5:$P$21,$A31)>0),SUMIFS(REPORT!R$5:R$21, REPORT!$P$5:$P$21,$A31),"") -> 283 | D31: =IF((SUMIFS(REPORT!S$5:S$21, REPORT!$P$5:$P$21,$A31)>0),SUMIFS(REPORT!S$5:S$21, REPORT!$P$5:$P$21,$A31),"") -> 81 | E31: =IF((SUMIFS(REPORT!T$5:T$21, REPORT!$P$5:$P$21,$A31)>0),SUMIFS(REPORT!T$5:T$21, REPORT!$P$5:$P$21,$A31),"") -> 
A32: 4+ | B32: =IF((SUMIFS(REPORT!Q$5:Q$21, REPORT!$P$5:$P$21,$A32)>0),SUMIFS(REPORT!Q$5:Q$21, REPORT!$P$5:$P$21,$A32),"") ->  | C32: =IF((SUMIFS(REPORT!R$5:R$21, REPORT!$P$5:$P$21,$A32)>0),SUMIFS(REPORT!R$5:R$21, REPORT!$P$5:$P$21,$A32),"") ->  | D32: =IF((SUMIFS(REPORT!S$5:S$21, REPORT!$P$5:$P$21,$A32)>0),SUMIFS(REPORT!S$5:S$21, REPORT!$P$5:$P$21,$A32),"") ->  | E32: =IF((SUMIFS(REPORT!T$5:T$21, REPORT!$P$5:$P$21,$A32)>0),SUMIFS(REPORT!T$5:T$21, REPORT!$P$5:$P$21,$A32),"") -> 
A33: Total | B33: =SUM(B27:B32) -> 6900 | C33: 763 | D33: 225 | E33: 90
A35: 2022-05-29
A37: INFORMATION FOR IC | C37: 20175355007 | E37: 20139509003 | G37: 20111926003 | I37: 20047209002 | K37: 20175355002
C38: CORPORATE | E38: PCO | G38: RIPE PLT | I38: SDM | K38: NORTHERN
C39: RM# | D39: QTY | E39: RM# | F39: QTY | G39: RM# | H39: QTY | I39: RM# | J39: QTY | K39: RM# | L39: QTY
A40: USE 1ST | C40: =IF(ISNUMBER(D40),VLOOKUP(C$38&$A40,REPORT!$B$2:$AZ$29,5,0),"") -> 2A | D40: =IF(ISERROR(VLOOKUP(C$38&$A40,REPORT!$B$2:$AZ$29,16,0)),"",VLOOKUP(C$38&$A40,REPORT!$B$2:$AZ$29,16,0)) -> 672 | E40: =IF(ISNUMBER(F40),VLOOKUP(E$38&$A40,REPORT!$C$2:$AZ$29,4,0),"") -> 2B | F40: =IF(ISERROR(VLOOKUP(E$38&$A40,REPORT!$C$2:$AZ$29,16,0)),"",VLOOKUP(E$38&$A40,REPORT!$C$2:$AZ$29,16,0)) -> 144 | G40: =IF(ISNUMBER(H40),VLOOKUP(G$38&$A40,REPORT!$D$2:$AZ$29,3,0),"") -> 2B | H40: =IF(ISERROR(VLOOKUP(G$38&$A40,REPORT!$D$2:$AZ$29,16,0)),"",VLOOKUP(G$38&$A40,REPORT!$D$2:$AZ$29,16,0)) -> 96 | I40: =IF(ISNUMBER(J40),VLOOKUP(I$38&$A40,REPORT!$E$2:$AZ$29,2,0),"") ->  | J40: =IF(ISERROR(VLOOKUP(I$38&$A40,REPORT!$E$2:$AZ$29,16,0)),"",VLOOKUP(I$38&$A40,REPORT!$E$2:$AZ$29,16,0)) ->  | K40: =IF(ISNUMBER(L40),VLOOKUP($K38,REPORT!$A$2:$S$28,6,0),"") -> 5 | L40: 250
A41: USE 2ND | C41: =IF(ISNUMBER(D41),VLOOKUP(C$38&$A41,REPORT!$B$2:$AZ$29,5,0),"") -> 2B | D41: =IF(ISERROR(VLOOKUP(C$38&$A41,REPORT!$B$2:$AZ$29,16,0)),"",VLOOKUP(C$38&$A41,REPORT!$B$2:$AZ$29,16,0)) -> 528 | E41: =IF(ISNUMBER(F41),VLOOKUP(E$38&$A41,REPORT!$C$2:$AZ$29,4,0),"") -> 4A | F41: =IF(ISERROR(VLOOKUP(E$38&$A41,REPORT!$C$2:$AZ$29,16,0)),"",VLOOKUP(E$38&$A41,REPORT!$C$2:$AZ$29,16,0)) -> 192 | G41: =IF(ISNUMBER(H41),VLOOKUP(G$38&$A41,REPORT!$D$2:$AZ$29,3,0),"") ->  | H41: =IF(ISERROR(VLOOKUP(G$38&$A41,REPORT!$D$2:$AZ$29,16,0)),"",VLOOKUP(G$38&$A41,REPORT!$D$2:$AZ$29,16,0)) ->  | I41: =IF(ISNUMBER(J41),VLOOKUP(I$38&$A41,REPORT!$E$2:$AZ$29,2,0),"") ->  | J41: =IF(ISERROR(VLOOKUP(I$38&$A41,REPORT!$E$2:$AZ$29,16,0)),"",VLOOKUP(I$38&$A41,REPORT!$E$2:$AZ$29,16,0)) -> 
A42: USE 3RD | C42: =IF(ISNUMBER(D42),VLOOKUP(C$38&$A42,REPORT!$B$2:$AZ$29,5,0),"") -> 7 | D42: =IF(ISERROR(VLOOKUP(C$38&$A42,REPORT!$B$2:$AZ$29,16,0)),"",VLOOKUP(C$38&$A42,REPORT!$B$2:$AZ$29,16,0)) -> 816 | E42: =IF(ISNUMBER(F42),VLOOKUP(E$38&$A42,REPORT!$C$2:$AZ$29,4,0),"") ->  | F42: =IF(ISERROR(VLOOKUP(E$38&$A42,REPORT!$C$2:$AZ$29,16,0)),"",VLOOKUP(E$38&$A42,REPORT!$C$2:$AZ$29,16,0)) ->  | G42: =IF(ISNUMBER(H42),VLOOKUP(G$38&$A42,REPORT!$D$2:$AZ$29,3,0),"") ->  | H42: =IF(ISERROR(VLOOKUP(G$38&$A42,REPORT!$D$2:$AZ$29,16,0)),"",VLOOKUP(G$38&$A42,REPORT!$D$2:$AZ$29,16,0)) ->  | I42: =IF(ISNUMBER(J42),VLOOKUP(I$38&$A42,REPORT!$E$2:$AZ$29,2,0),"") ->  | J42: =IF(ISERROR(VLOOKUP(I$38&$A42,REPORT!$E$2:$AZ$29,16,0)),"",VLOOKUP(I$38&$A42,REPORT!$E$2:$AZ$29,16,0)) -> 
A43: USE 4TH | C43: =IF(ISNUMBER(D43),VLOOKUP(C$38&$A43,REPORT!$B$2:$AZ$29,5,0),"") -> 4A | D43: =IF(ISERROR(VLOOKUP(C$38&$A43,REPORT!$B$2:$AZ$29,16,0)),"",VLOOKUP(C$38&$A43,REPORT!$B$2:$AZ$29,16,0)) -> 624 | E43: =IF(ISNUMBER(F43),VLOOKUP(E$38&$A43,REPORT!$C$2:$AZ$29,4,0),"") ->  | F43: =IF(ISERROR(VLOOKUP(E$38&$A43,REPORT!$C$2:$AZ$29,16,0)),"",VLOOKUP(E$38&$A43,REPORT!$C$2:$AZ$29,16,0)) ->  | G43: =IF(ISNUMBER(H43),VLOOKUP(G$38&$A43,REPORT!$D$2:$AZ$29,3,0),"") ->  | H43: =IF(ISERROR(VLOOKUP(G$38&$A43,REPORT!$D$2:$AZ$29,16,0)),"",VLOOKUP(G$38&$A43,REPORT!$D$2:$AZ$29,16,0)) ->  | I43: =IF(ISNUMBER(J43),VLOOKUP(I$38&$A43,REPORT!$E$2:$AZ$29,2,0),"") ->  | J43: =IF(ISERROR(VLOOKUP(I$38&$A43,REPORT!$E$2:$AZ$29,16,0)),"",VLOOKUP(I$38&$A43,REPORT!$E$2:$AZ$29,16,0)) -> 
A44: PARTIAL | C44: =IF(ISNUMBER(D44),VLOOKUP(C$38&$A44,REPORT!$B$2:$AZ$29,5,0),"") ->  | E44: =IF(ISNUMBER(F44),VLOOKUP(E$38&$A44,REPORT!$C$2:$AZ$29,4,0),"") ->  | G44: =IF(ISNUMBER(H44),VLOOKUP(G$38&$A44,REPORT!$D$2:$AZ$29,3,0),"") ->  | I44: =IF(ISNUMBER(J44),VLOOKUP(I$38&$A44,REPORT!$E$2:$AZ$29,2,0),"") -> 
A45: IF NEEDED | C45: =IF(ISNUMBER(D45),VLOOKUP(C$38&$A45,REPORT!$B$2:$AZ$29,5,0),"") ->  | E45: =IF(ISNUMBER(F45),VLOOKUP(E$38&$A45,REPORT!$C$2:$AZ$29,4,0),"") ->  | G45: =IF(ISNUMBER(H45),VLOOKUP(G$38&$A45,REPORT!$D$2:$AZ$29,3,0),"") ->  | I45: =IF(ISNUMBER(J45),VLOOKUP(I$38&$A45,REPORT!$E$2:$AZ$29,2,0),"") -> 
A46: Staging lanes / Left Over | C46: STAGE | D46: QTY | E46: STAGE | F46: QTY | G46: STAGE | H46: QTY | I46: STAGE | J46: QTY
C47: 3 | D47: 1620 | E47: 3 | F47: 283 | G47: 3 | H47: 81 | L47: 140
A49: TOTALS | D49: =SUM(D40:D44)+D47 -> 4260 | F49: =SUM(F40:F44)+F47 -> 619 | H49: =SUM(H40:H44)+H47 -> 177 | J49: =SUM(J40:J44)+J47 -> 0 | L49: =SUM(L40:L44)+L47 -> 390
A50: Comments

Sheet 1
E1: BANANA RECEIVING RIPENING LOG
K3: DATE RECEIVED 1A
A4: ROOM # | C4: PO # | E4: LABEL | H4: COO | K4: DATE GASSED
A5: 1A | K5: DATE RECEIVED 1B | N5: 2022-05-28
K6: DATE GASSED
A7: 1B | K7: ESTIMATED DATE OF SALE 1A
K8: ESTIMATED DATE OF SALE 1B
K9: GENERATOR SETTING | N9: 3
A11: ROOM | B11: DATE | C11: PULP TEMP | D11: SET TEMP | E11: RM TEMP | F11: HUMIDITY | G11: HRs. | H11: STAGE | I11: CORPORATE | J11: PCO | K11: RIPE PLANTAIN | L11: SDM | M11: COMMENTS
A13: 1A | B13: TODAY
A14: 1B | B14: TODAY | C14: 58.9
A16: 1A | B16: =IF(ISBLANK($N$3)," ", N3) -> 
A17: 1B | B17: =IF(ISBLANK($N$5)," ", N5) -> 2022-05-28
A19: 1A | B19: =IF(ISBLANK($N$3),"",B16+1) -> 
A20: 1B | B20: =IF(ISBLANK($N$5),"",B17+1) -> 2022-05-29 | C20: 58.9
A22: 1A | B22: =IF(ISBLANK($N$3),"",B19+1) -> 
A23: 1B | B23: =IF(ISBLANK($N$5),"",B20+1) -> 2022-05-30
A25: 1A | B25: =IF(ISBLANK($N$3),"",B22+1) -> 
A26: 1B | B26: =IF(ISBLANK($N$5),"",B23+1) -> 2022-05-31
A28: 1A | B28: =IF(ISBLANK($N$3),"",B25+1) -> 
A29: 1B | B29: =IF(ISBLANK($N$5),"",B26+1) -> 2022-06-01
A31: 1A | B31: =IF(ISBLANK($N$3),"",B28+1) -> 
A32: 1B | B32: =IF(ISBLANK($N$5),"",B29+1) -> 2022-06-02
A34: 1A | B34: =IF(ISBLANK($N$3),"",B31+1) -> 
A35: 1B | B35: =IF(ISBLANK($N$5),"",B32+1) -> 2022-06-03
A37: 1A | B37: =IF(ISBLANK($N$3),"",B34+1) -> 
A38: 1B | B38: =IF(ISBLANK($N$5),"",B35+1) -> 2022-06-04

Sheet 2
E1: BANANA RECEIVING RIPENING LOG
K3: DATE RECEIVED 2A | N3: 2022-05-25
A4: ROOM # | C4: PO # | E4: LABEL | H4: COO | K4: DATE GASSED | N4: 2022-05-25
A5: 2A | C5: 2004504425 | E5: DELMONTE | H5: GUATEMALA | K5: DATE RECEIVED 2B | N5: 2022-05-25
K6: DATE GASSED | N6: 2022-05-25
A7: 2B | C7: 2004504432 | E7: DELMONTE | H7: GUATEMALA | K7: ESTIMATED DATE OF SALE 2A | N7: SUN
K8: ESTIMATED DATE OF SALE 2B | N8: SUN
K9: GENERATOR SETTING | N9: 3
A11: ROOM | B11: DATE | C11: PULP TEMP | D11: SET TEMP | E11: RM TEMP | F11: HUMIDITY | G11: HRs. | H11: STAGE | I11: CORPORATE | J11: PCO | K11: RIPE PLANTAIN | L11: SDM | M11: COMMENTS
A13: 2A | B13: TODAY | C13: 58.9 | D13: 58 | E13: 59 | F13: 0.9 | G13: 72 | H13: 3 | I13: 672
A14: 2B | B14: TODAY | C14: 61.3 | D14: 60 | E14: 60 | F14: 0.91 | G14: 72 | H14: 2.5 | I14: 528 | J14: 144 | K14: 96 | L14: 45
A16: 2A | B16: =IF(ISBLANK($N$3)," ", N3) -> 2022-05-25 | C16: 61.7 | D16: 62 | E16: 60.4 | F16: 0.72 | G16: 0 | H16: 1 | I16: 960 | M16: Gassing | Z16: kkk
A17: 2B | B17: =IF(ISBLANK($N$5)," ", N5) -> 2022-05-25 | C17: 62.3 | D17: 62 | E17: 60.9 | F17: 0.72 | G17: 0 | H17: 1 | I17: 528 | J17: 192 | K17: 96 | L17: 45 | M17: Gassing
A19: 2A | B19: =IF(ISBLANK($N$3),"",B16+1) -> 2022-05-26 | C19: 62 | D19: 62 | E19: 62 | F19: 0.85 | G19: 24 | H19: 1 | I19: 960
A20: 2B | B20: =IF(ISBLANK($N$5),"",B17+1) -> 2022-05-26 | C20: 62 | D20: 62 | E20: 62.1 | F20: 0.85 | G20: 24 | H20: 1 | I20: 528 | J20: 192 | K20: 96 | L20: 45
A22: 2A | B22: =IF(ISBLANK($N$3),"",B19+1) -> 2022-05-27 | C22: 60.8 | D22: 60 | E22: 60.1 | F22: 0.91 | G22: 48 | H22: 2 | I22: 960
A23: 2B | B23: =IF(ISBLANK($N$5),"",B20+1) -> 2022-05-27 | C23: 61.3 | D23: 60 | E23: 60 | F23: 0.91 | G23: 48 | H23: 2 | I23: 528 | J23: 192 | K23: 96 | L23: 45
A25: 2A | B25: =IF(ISBLANK($N$3),"",B22+1) -> 2022-05-28 | C25: 58.9 | D25: 58 | E25: 59 | F25: 0.9 | G25: 72 | H25: 3 | I25: 672
A26: 2B | B26: =IF(ISBLANK($N$5),"",B23+1) -> 2022-05-28 | C26: 61.3 | D26: 60 | E26: 60 | F26: 0.91 | G26: 72 | H26: 2.5 | I26: 528 | J26: 144 | K26: 96 | L26: 45
A28: 2A | B28: =IF(ISBLANK($N$3),"",B25+1) -> 2022-05-29
A29: 2B | B29: =IF(ISBLANK($N$5),"",B26+1) -> 2022-05-29
A31: 2A | B31: =IF(ISBLANK($N$3),"",B28+1) -> 2022-05-30
A32: 2B | B32: =IF(ISBLANK($N$5),"",B29+1) -> 2022-05-30
A34: 2A | B34: =IF(ISBLANK($N$3),"",B31+1) -> 2022-05-31
A35: 2B | B35: =IF(ISBLANK($N$5),"",B32+1) -> 2022-05-31
A37: 2A | B37: =IF(ISBLANK($N$3),"",B34+1) -> 2022-06-01
A38: 2B | B38: =IF(ISBLANK($N$5),"",B35+1) -> 2022-06-01

Sheet 3
E1: BANANA RECEIVING RIPENING LOG
K3: DATE RECEIVED 3A | N3: 2022-05-25
A4: ROOM # | C4: PO # | E4: LABEL | H4: COO | K4: DATE GASSED | N4: 2022-05-25
A5: 3A | K5: DATE RECEIVED 3B | N5: 2022-05-26
K6: DATE GASSED | N6: 2022-05-25
A7: 3B | K7: ESTIMATED DATE OF SALE 3A | N7: SUN
K8: ESTIMATED DATE OF SALE 3B | N8: SUN
K9: GENERATOR SETTING | N9: 3
A11: ROOM | B11: DATE | C11: PULP TEMP | D11: SET TEMP | E11: RM TEMP | F11: HUMIDITY | G11: HRs. | H11: STAGE | I11: CORPORATE | J11: PCO | K11: RIPE PLANTAIN | L11: SDM | M11: COMMENTS
A13: 3A | B13: TODAY
A14: 3B | B14: TODAY
A16: 3A | B16: =IF(ISBLANK($N$3)," ", N3) -> 2022-05-25
A17: 3B | B17: =IF(ISBLANK($N$5)," ", N5) -> 2022-05-26
A19: 3A | B19: =IF(ISBLANK($N$3),"",B16+1) -> 2022-05-26
A20: 3B | B20: =IF(ISBLANK($N$5),"",B17+1) -> 2022-05-27
A22: 3A | B22: =IF(ISBLANK($N$3),"",B19+1) -> 2022-05-27
A23: 3B | B23: =IF(ISBLANK($N$5),"",B20+1) -> 2022-05-28
A25: 3A | B25: =IF(ISBLANK($N$3),"",B22+1) -> 2022-05-28
A26: 3B | B26: =IF(ISBLANK($N$5),"",B23+1) -> 2022-05-29
A28: 3A | B28: =IF(ISBLANK($N$3),"",B25+1) -> 2022-05-29
A29: 3B | B29: =IF(ISBLANK($N$5),"",B26+1) -> 2022-05-30
A31: 3A | B31: =IF(ISBLANK($N$3),"",B28+1) -> 2022-05-30
A32: 3B | B32: =IF(ISBLANK($N$5),"",B29+1) -> 2022-05-31
A34: 3A | B34: =IF(ISBLANK($N$3),"",B31+1) -> 2022-05-31
A35: 3B | B35: =IF(ISBLANK($N$5),"",B32+1) -> 2022-06-01
A37: 3A | B37: =IF(ISBLANK($N$3),"",B34+1) -> 2022-06-01
A38: 3B | B38: =IF(ISBLANK($N$5),"",B35+1) -> 2022-06-02

Sheet 4
E1: BANANA RECEIVING RIPENING LOG
K3: DATE RECEIVED 4A | N3: 2022-05-26
A4: ROOM # | C4: PO # | E4: LABEL | H4: COO | K4: DATE GASSED | N4: 2022-05-27
A5: 4A | C5: 2004504433 | E5: DELMONTE | H5: GUATEMALA | K5: DATE RECEIVED 4B | N5: 2022-05-27
K6: DATE GASSED | N6: 2022-05-27
A7: 4B | C7: 2004504938 | E7: DELMONTE | H7: GUATEMALA | K7: ESTIMATED DATE OF SALE 4A | N7: MON
K8: ESTIMATED DATE OF SALE 4B | N8: TUE
K9: GENERATOR SETTING | N9: 3
A11: ROOM | B11: DATE | C11: PULP TEMP | D11: SET TEMP | E11: RM TEMP | F11: HUMIDITY | G11: HRs. | H11: STAGE | I11: CORPORATE | J11: PCO | K11: RIPE PLANTAIN | L11: SDM | M11: COMMENTS
A13: 4A | B13: TODAY | C13: 62.7 | D13: 62 | E13: 62 | F13: 0.75 | G13: 48 | H13: 2 | I13: 624 | J13: 192 | K13: 48
A14: 4B | B14: TODAY | C14: 62.2 | D14: 62 | E14: 62 | F14: 0.75 | G14: 24 | H14: 1 | I14: 960
A16: 4A | B16: =IF(ISBLANK($N$3)," ", N3) -> 2022-05-26 | C16: 62.3 | D16: 61 | E16: 58.7 | F16: 0.72 | G16: 0 | H16: 1 | I16: 624 | J16: 192 | K16: 48 | M16: Gassing
A17: 4B | B17: =IF(ISBLANK($N$5)," ", N5) -> 2022-05-27
A19: 4A | B19: =IF(ISBLANK($N$3),"",B16+1) -> 2022-05-27 | C19: 62.2 | D19: 61 | E19: 62 | F19: 0.83 | G19: 24 | H19: 1.5 | I19: 624 | J19: 192 | K19: 48 | M19: Gassing
A20: 4B | B20: =IF(ISBLANK($N$5),"",B17+1) -> 2022-05-28 | C20: 63.2 | D20: 62 | E20: 62 | F20: 0.83 | G20: 0 | H20: 1 | I20: 960 | M20: Gassing
A22: 4A | B22: =IF(ISBLANK($N$3),"",B19+1) -> 2022-05-28
A23: 4B | B23: =IF(ISBLANK($N$5),"",B20+1) -> 2022-05-29 | C23: 62.2 | D23: 62 | E23: 62 | F23: 0.75 | G23: 24 | H23: 1 | I23: 960
A25: 4A | B25: =IF(ISBLANK($N$3),"",B22+1) -> 2022-05-29
A26: 4B | B26: =IF(ISBLANK($N$5),"",B23+1) -> 2022-05-30
A28: 4A | B28: =IF(ISBLANK($N$3),"",B25+1) -> 2022-05-30
A29: 4B | B29: =IF(ISBLANK($N$5),"",B26+1) -> 2022-05-31
A31: 4A | B31: =IF(ISBLANK($N$3),"",B28+1) -> 2022-05-31
A32: 4B | B32: =IF(ISBLANK($N$5),"",B29+1) -> 2022-06-01
A34: 4A | B34: =IF(ISBLANK($N$3),"",B31+1) -> 2022-06-01
A35: 4B | B35: =IF(ISBLANK($N$5),"",B32+1) -> 2022-06-02
A37: 4A | B37: =IF(ISBLANK($N$3),"",B34+1) -> 2022-06-02
A38: 4B | B38: =IF(ISBLANK($N$5),"",B35+1) -> 2022-06-03

Sheet 5
E1: BANANA RECEIVING RIPENING LOG
A4: ROOM # | C4: PO # | E4: LABEL | H4: COO | K4: DATE RECEIVED | N4: 2022-05-26
A5: 5 | C5: 2004504426 | E5: DELMONTE | H5: GUATEMALA | K5: DATE GASSED | N5: 2022-05-26
K6: ESTIMATED DATE OF SALE | N6: MON
K7: GENERATOR SETTING | N7: 3
A10: ROOM | B10: DATE | C10: PULP TEMP | D10: SET TEMP | E10: RM TEMP | F10: HUMIDITY | G10: HRs. | H10: STAGE | I10: CORPORATE | J10: PCO | K10: RIPE PLANTAIN | L10: SDM | M10: COMMENTS
A12: 5 | B12: TODAY | C12: 61.2 | D12: 61 | E12: 61 | F12: 0.88 | G12: 48 | H12: 2 | I12: 960
A14: 5 | B14: =IF(ISBLANK($N$4)," ", N4) -> 2022-05-26 | C14: 63 | D14: 61 | E14: 59.4 | F14: 0.71 | G14: 0 | H14: 1 | I14: 960 | M14: Gassing
A16: 5 | B16: =IF(ISBLANK($N$4),"",B14+1) -> 2022-05-27 | C16: 62 | D16: 62 | E16: 62 | F16: 0.87 | G16: 24 | H16: 1.5 | I16: 960
A18: 5 | B18: =IF(ISBLANK($N$4),"",B16+1) -> 2022-05-28 | C18: 61.2 | D18: 61 | E18: 61 | F18: 0.88 | G18: 48 | H18: 2 | I18: 960
A20: 5 | B20: =IF(ISBLANK($N$4),"",B18+1) -> 2022-05-29
A22: 5 | B22: =IF(ISBLANK($N$4),"",B20+1) -> 2022-05-30
A24: 5 | B24: =IF(ISBLANK($N$4),"",B22+1) -> 2022-05-31
A26: 5 | B26: =IF(ISBLANK($N$4),"",B24+1) -> 2022-06-01

Sheet 6
E1: BANANA RECEIVING RIPENING LOG
A4: ROOM # | C4: PO # | E4: LABEL | H4: COO | K4: DATE RECEIVED
A5: 6 | K5: DATE GASSED
K6: ESTIMATED DATE OF SALE
K7: GENERATOR SETTING | N7: 3
A10: ROOM | B10: DATE | C10: PULP TEMP | D10: SET TEMP | E10: RM TEMP | F10: HUMIDITY | G10: HRs. | H10: STAGE | I10: CORPORATE | J10: PCO | K10: RIPE PLANTAIN | L10: SDM | M10: COMMENTS
A12: 6 | B12: TODAY
A14: 6 | B14: =IF(ISBLANK($N$4)," ", N4) -> 
A16: 6 | B16: =IF(ISBLANK($N$4),"",B14+1) -> 
A18: 6 | B18: =IF(ISBLANK($N$4),"",B16+1) -> 
A20: 6 | B20: =IF(ISBLANK($N$4),"",B18+1) -> 
A22: 6 | B22: =IF(ISBLANK($N$4),"",B20+1) -> 
A24: 6 | B24: =IF(ISBLANK($N$4),"",B22+1) -> 
A26: 6 | B26: =IF(ISBLANK($N$4),"",B24+1) -> 

Sheet 7
E1: BANANA RECEIVING RIPENING LOG
A4: ROOM # | C4: PO # | E4: LABEL | H4: COO | K4: DATE RECEIVED | N4: 2022-05-27
A5: 7 | C5: 2004505631 | E5: CHIQUITA | H5: GUATEMALA | K5: DATE GASSED | N5: 2022-05-27
K6: ESTIMATED DATE OF SALE | N6: MON
K7: GENERATOR SETTING | N7: 3
A10: ROOM | B10: DATE | C10: PULP TEMP | D10: SET TEMP | E10: RM TEMP | F10: HUMIDITY | G10: HRs. | H10: STAGE | I10: CORPORATE | J10: PCO | K10: RIPE PLANTAIN | L10: SDM | M10: COMMENTS
A12: 7 | B12: TODAY | C12: 59.9 | D12: 60 | E12: 60.2 | F12: 0.9 | G12: 24 | H12: 2.5 | I12: 816
A14: 7 | B14: =IF(ISBLANK($N$4)," ", N4) -> 2022-05-27 | C14: 60.3 | D14: 60 | E14: 60.8 | F14: 0.7 | H14: 2 | I14: 816 | J14: 48 | M14: Gassing
A16: 7 | B16: =IF(ISBLANK($N$4),"",B14+1) -> 2022-05-28 | C16: 59.9 | D16: 60 | E16: 60.2 | F16: 0.9 | G16: 24 | H16: 2.5 | I16: 816
A18: 7 | B18: =IF(ISBLANK($N$4),"",B16+1) -> 2022-05-29
A20: 7 | B20: =IF(ISBLANK($N$4),"",B18+1) -> 2022-05-30
A22: 7 | B22: =IF(ISBLANK($N$4),"",B20+1) -> 2022-05-31
A24: 7 | B24: =IF(ISBLANK($N$4),"",B22+1) -> 2022-06-01
A26: 7 | B26: =IF(ISBLANK($N$4),"",B24+1) -> 2022-06-02

Sheet 8
E1: BANANA RECEIVING RIPENING LOG
A4: ROOM # | C4: PO # | E4: LABEL | H4: COO | K4: DATE RECEIVED
A5: 8 | K5: DATE GASSED
K6: ESTIMATED DATE OF SALE
K7: GENERATOR SETTING | N7: 3
A10: ROOM | B10: DATE | C10: PULP TEMP | D10: SET TEMP | E10: RM TEMP | F10: HUMIDITY | G10: HRs. | H10: STAGE | I10: CORPORATE | J10: PCO | K10: RIPE PLANTAIN | L10: SDM | M10: COMMENTS
A12: 8 | B12: TODAY
A14: 8 | B14: =IF(ISBLANK($N$4)," ", N4) -> 
A16: 8 | B16: =IF(ISBLANK($N$4),"",B14+1) -> 
A18: 8 | B18: =IF(ISBLANK($N$4),"",B16+1) -> 
A20: 8 | B20: =IF(ISBLANK($N$4),"",B18+1) -> 
A22: 8 | B22: =IF(ISBLANK($N$4),"",B20+1) -> 
A24: 8 | B24: =IF(ISBLANK($N$4),"",B22+1) -> 
A26: 8 | B26: =IF(ISBLANK($N$4),"",B24+1) -> 

Sheet 9
E1: BANANA RECEIVING RIPENING LOG
A4: ROOM # | C4: PO # | E4: LABEL | H4: COO | K4: DATE RECEIVED
A5: 9 | K5: DATE GASSED
K6: ESTIMATED DATE OF SALE
K7: GENERATOR SETTING | N7: 3
A10: ROOM | B10: DATE | C10: PULP TEMP | D10: SET TEMP | E10: RM TEMP | F10: HUMIDITY | G10: HRs. | H10: STAGE | I10: CORPORATE | J10: PCO | K10: RIPE PLANTAIN | L10: SDM | M10: COMMENTS
A12: 9 | B12: TODAY
A14: 9 | B14: =IF(ISBLANK($N$4)," ", N4) -> 
A16: 9 | B16: =IF(ISBLANK($N$4),"",B14+1) -> 
A18: 9 | B18: =IF(ISBLANK($N$4),"",B16+1) -> 
A20: 9 | B20: =IF(ISBLANK($N$4),"",B18+1) -> 
A22: 9 | B22: =IF(ISBLANK($N$4),"",B20+1) -> 
A24: 9 | B24: =IF(ISBLANK($N$4),"",B22+1) -> 
A26: 9 | B26: =IF(ISBLANK($N$4),"",B24+1) -> 

Sheet 10
E1: BANANA RECEIVING RIPENING LOG
A4: ROOM # | C4: PO # | E4: LABEL | H4: COO | K4: DATE RECEIVED | N4: 2022-05-27
A5: 10 | C5: 2004504945 | E5: DELMONTE | H5: GUATEMALA | K5: DATE GASSED | N5: 2022-05-27
K6: ESTIMATED DATE OF SALE | N6: TUE
K7: GENERATOR SETTING | N7: 3
A10: ROOM | B10: DATE | C10: PULP TEMP | D10: SET TEMP | E10: RM TEMP | F10: HUMIDITY | G10: HRs. | H10: STAGE | I10: CORPORATE | J10: PCO | K10: RIPE PLANTAIN | L10: SDM | M10: COMMENTS
A12: 10 | B12: TODAY | C12: 62.6 | D12: 62 | E12: 62 | F12: 0.87 | G12: 24 | H12: 1 | I12: 720 | J12: 144 | L12: 45
A14: 10 | B14: =IF(ISBLANK($N$4)," ", N4) -> 2022-05-27 | C14: 58.9 | D14: 62 | E14: 61.2 | F14: 0.8 | G14: 0 | H14: 1 | I14: 720 | J14: 144 | L14: 45 | M14: Gassing
A16: 10 | B16: =IF(ISBLANK($N$4),"",B14+1) -> 2022-05-28 | C16: 62.6 | D16: 62 | E16: 62 | F16: 0.87 | G16: 24 | H16: 1 | I16: 720 | J16: 144 | L16: 45
A18: 10 | B18: =IF(ISBLANK($N$4),"",B16+1) -> 2022-05-29
A20: 10 | B20: =IF(ISBLANK($N$4),"",B18+1) -> 2022-05-30
A22: 10 | B22: =IF(ISBLANK($N$4),"",B20+1) -> 2022-05-31
A24: 10 | B24: =IF(ISBLANK($N$4),"",B22+1) -> 2022-06-01
A26: 10 | B26: =IF(ISBLANK($N$4),"",B24+1) -> 2022-06-02

Sheet PRE RIPE
D1: BANANA RECEIVING RIPENING LOG
A5: ROOM | B5: DATE REC | C5: PO# | D5: LABEL | E5: COO | F5: PULP TEMP | G5: STAGE | H5: CORPORATE | I5: PCO | J5: RIPE PLT | K5: SDM | L5: COMMENTS
A7: PRE1
A8: PRE2

Sheet RECEIVING
A1: DATE | B1: BAN ROOM # | C1: PO# | D1: # OF REGULAR | E1: # OF ORGANIC | F1: # OF RIPE PLANTAIN | G1: # OF SDM | H1: PULP #1 | I1: PULP #2 | J1: ORIGIN | K1: SET PT | L1: DAY | M1: LABEL | N1: CARRIER | O1: RECEIVING DOOR | P1: Comments

Sheet List (hidden)
B1: DELMONTE | D1: ECUADOR | F1: SUN | H1: USE 1ST | I1: =TODAY() -> 2022-05-29
B2: DOLE | D2: GUATEMALA | F2: MON | H2: USE 2ND | I2: =TODAY()+1 -> 2022-05-30
B3: CHIQUITA | D3: PERU | F3: TUE | H3: USE 3RD
B4: ONE BANANA | D4: MEXICO | F4: WED | H4: USE 4TH
B5: TURBANA | D5: COSTA RICA | F5: THU | H5: PARTIAL
B6: FYFFES | D6: HONDURAS | F6: FRI | H6: IF NEEDED
D7: NICARAGUA | F7: SAT | H7: NORTHERN
D8: COLUMBIA | H8: OUT OF SERVICE
D9: PANAMA | H9: STANDBY
D10: DOMINICAN
